bitfinex/quotes_ETHUSD_20260125
["timestamp","ask_amount","ask_price","bid_price","bid_amount"]
[1769374289456,0.001,2798.4,2797.9,0.07885587]
[1769374290464,0.001,2798.4,2798.1,0.07885587]
[1769374291061,0.001,2798.4,2797.9,0.07885587]
[1769374291264,0.001,2798.4,2798.1,0.07885587]
[1769374291465,12.43435195,2799.0,2798.3,0.07885587]
[1769374291682,13.67778715,2799.0,2798.3,0.07885587]
[1769374292585,13.32745266,2799.3,2798.3,0.07885587]
[1769374292784,13.32743514,2799.3,2798.5,0.07885587]
[1769374292991,12.43435195,2799.3,2798.5,0.07885587]
[1769374293288,12.81304431,2799.6,2798.7,0.07885587]
[1769374293459,0.128,2800.0,2798.9,0.07885587]
[1769374293460,13.70596613,2799.8,2798.9,0.07885587]
[1769374293664,13.70596613,2799.8,2798.7,0.07885587]
[1769374293665,12.81304431,2799.6,2798.7,0.07885587]
[1769374294277,1.72775318,2799.7,2798.9,0.07885587]
[1769374294696,1.72775318,2799.7,2799.1,0.07885587]
[1769374294876,1.64084893,2800.1,2799.1,0.07885587]
[1769374295079,14.45389324,2800.1,2799.1,0.07885587]
[1769374295784,12.81304431,2800.0,2798.7,0.07885587]
[1769374295984,12.81304431,2800.0,2799.1,0.07885587]
[1769374296191,1.82268932,2799.9,2799.1,0.07885587]
[1769374296388,1.82268932,2799.9,2799.2,0.07885587]
[1769374296887,0.001,2800.2,2799.4,0.07885587]
[1769374297292,12.81404431,2800.2,2799.4,0.07885587]
[1769374298192,12.81404431,2800.2,2799.6,0.07885587]
[1769374298393,12.81404431,2800.2,2799.4,0.07885587]
[1769374298583,12.81404431,2800.2,2799.6,0.07885587]
[1769374298783,14.09544874,2800.2,2799.6,0.07885587]
[1769374299288,1.28240443,2800.2,2799.4,0.07885587]
[1769374299472,0.001,2800.2,2799.6,0.07885587]
[1769374299674,0.001,2800.2,2799.4,0.07885587]
[1769374299867,0.001,2800.2,2799.6,0.07885587]
[1769374300063,0.001,2800.0,2799.6,0.07885587]
[1769374300487,0.001,2800.0,2799.7,0.07885587]
[1769374301171,0.001,2800.0,2799.9,0.07885587]
[1769374301367,0.001,2800.0,2799.7,0.07885587]
[1769374301569,0.001,2800.0,2799.9,0.07885587]
[1769374301769,0.001,2800.6,2799.9,0.07885587]
[1769374301995,0.001,2800.6,2800.2,0.07885587]
[1769374302173,12.81304431,2801.0,2800.2,0.07885587]
[1769374303193,12.81304431,2801.0,2799.9,0.07885587]
[1769374303194,14.24286678,2801.0,2799.9,0.07885587]
[1769374304170,14.24286678,2801.0,2800.1,0.07885587]
[1769374304396,14.24286678,2801.0,2799.9,0.07885587]
[1769374304594,3.56979342,2801.3,2800.6,0.07885587]
[1769374304595,12.81304431,2801.3,2800.6,0.07885587]
[1769374305097,0.001,2801.4,2800.6,0.07885587]
[1769374305098,0.001,2801.4,2800.8,0.07885587]
[1769374305285,0.001,2801.4,2801.0,0.07885587]
[1769374305597,0.001,2801.4,2800.8,0.07885587]
[1769374305794,12.81304431,2802.2,2801.2,0.07885587]
[1769374306096,12.81304431,2802.2,2801.4,0.07885587]
[1769374306097,1.28130443,2802.1,2801.4,0.07885587]
[1769374306605,0.89206066,2802.5,2801.6,0.07885587]
[1769374306765,12.81304431,2802.4,2801.2,0.07885587]
[1769374306969,12.81304431,2802.4,2801.0,0.07885587]
[1769374307168,12.81304431,2802.4,2801.4,0.07885587]
[1769374307416,12.81304431,2802.4,2801.2,0.07885587]
[1769374307596,12.81304431,2802.4,2801.4,0.07885587]
[1769374307597,14.61517907,2802.4,2801.4,0.07885587]
[1769374307780,12.81304431,2802.4,2801.6,0.07885587]
[1769374308310,12.99943729,2803.0,2802.2,0.07885587]
[1769374308466,13.89135393,2803.0,2802.2,0.07885587]
[1769374308670,12.99943729,2803.0,2802.2,0.07885587]
[1769374308894,12.81304431,2803.8,2802.7,0.07885587]
[1769374309094,1.28130443,2803.7,2802.7,0.07885587]
[1769374309291,14.09434874,2803.7,2802.9,0.07885587]
[1769374309508,14.09434874,2803.7,2802.7,0.07885587]
[1769374309691,14.09434874,2803.7,2802.9,0.07885587]
[1769374309876,14.09434874,2803.7,2802.2,0.07885587]
[1769374310188,1.57340092,2803.6,2803.1,0.07885587]
[1769374310376,12.81304431,2803.9,2803.1,0.07885587]
[1769374310783,13.70466205,2803.9,2802.7,0.07885587]
[1769374310974,13.70466205,2803.9,2802.5,0.07885587]
[1769374311170,13.70466205,2803.9,2802.7,0.07885587]
[1769374311383,0.001,2803.5,2802.9,0.07885587]
[1769374311587,0.001,2803.5,2802.7,0.07885587]
[1769374311789,12.81404431,2803.5,2802.7,0.07885587]
[1769374312512,12.81404431,2803.5,2802.9,0.07885587]
[1769374312685,0.001,2803.5,2803.1,0.07885587]
[1769374312882,0.001,2803.5,2802.9,0.07885587]
[1769374316005,0.0194778,2804.6,2804.2,0.07885587]
[1769374316204,0.0194778,2804.6,2803.5,0.07885587]
[1769374316205,12.83252211,2804.6,2803.5,0.07885587]
[1769374316375,12.83252211,2804.6,2804.1,0.07885587]
[1769374316376,0.0194778,2804.6,2804.1,0.07885587]
[1769374316574,12.83252211,2804.6,2803.4,0.07885587]
[1769374316911,14.09629652,2804.5,2803.6,0.07885587]
[1769374317222,1.28325221,2804.5,2804.0,0.07885587]
[1769374317376,0.0194778,2804.6,2803.8,0.97048618]
[1769374317575,0.0194778,2804.6,2804.0,0.07885587]
[1769374317983,0.0194778,2804.6,2803.4,0.07885587]
[1769374317984,13.7239267,2804.6,2803.4,0.07885587]
[1769374318626,13.7239267,2804.6,2803.2,0.07885587]
[1769374318927,13.7239267,2804.6,2803.1,0.07885587]
[1769374318928,12.81304431,2804.4,2803.1,0.07885587]
[1769374319097,12.81304431,2804.4,2803.5,0.07885587]
[1769374319805,1.72894975,2804.5,2803.7,0.07885587]
[1769374320107,12.83252211,2804.6,2803.7,0.07885587]
[1769374320285,0.0194778,2804.6,2804.1,0.07885587]
[1769374320684,0.0194778,2804.6,2804.3,0.07885587]
[1769374320924,0.18622643,2805.7,2805.0,0.07885587]
[1769374321125,14.25743765,2806.1,2805.2,0.07885587]
[1769374321298,1.42574377,2806.0,2805.2,0.07885587]
[1769374321814,1.42574377,2806.0,2804.5,0.07885587]
[1769374321815,14.23878808,2806.0,2804.5,0.07885587]
[1769374322125,14.23878808,2806.0,2805.1,0.07885587]
[1769374322442,14.23878808,2806.0,2804.3,0.07885587]
[1769374322600,14.23878808,2806.0,2804.1,0.07885587]
[1769374322601,13.04661461,2805.7,2804.1,0.07885587]
[1769374322799,13.04661461,2805.7,2803.9,0.07885587]
[1769374322800,12.81304431,2805.2,2803.9,0.07885587]
[1769374322997,4.80019569,2805.3,2803.5,0.07885587]
[1769374322998,12.11116269,2805.0,2803.5,0.07885587]
[1769374323223,12.11116269,2805.2,2804.4,0.07885587]
[1769374323495,12.11116269,2805.2,2804.2,0.07885587]
[1769374323702,0.07885587,2804.2,2801.5,0.07885587]
[1769374323942,0.2335703,2803.6,2802.5,0.07885587]
[1769374324103,12.11116269,2804.0,2802.8,0.07885587]
[1769374324304,1.28581627,2803.9,2802.8,0.07885587]
[1769374324746,1.28581627,2803.9,2802.6,0.07885587]
[1769374324747,12.11116269,2803.7,2802.6,0.07885587]
[1769374325430,12.11116269,2803.7,2802.4,0.07885587]
[1769374325631,12.11116269,2803.7,2802.6,0.07885587]
[1769374326210,12.11116269,2803.7,2803.0,0.07885587]
[1769374326433,1.30028097,2803.6,2803.0,0.07885587]
[1769374326637,3.56612039,2804.2,2803.3,0.07885587]
[1769374326638,13.00268857,2804.2,2803.3,0.07885587]
[1769374326940,0.891478,2804.4,2803.6,0.07885587]
[1769374327152,4.31258957,2804.6,2803.6,0.07885587]
[1769374327153,0.89143096,2804.5,2803.6,0.07885587]
[1769374328011,0.52040211,2804.4,2803.4,0.07885587]
[1769374328832,12.11116269,2804.3,2803.3,0.07885587]
[1769374329019,12.11116269,2804.3,2803.5,0.07885587]
[1769374329445,12.11116269,2804.3,2803.3,0.07885587]
[1769374329615,12.11116269,2804.3,2803.5,0.07885587]
[1769374329818,0.8914601,2804.4,2803.7,0.07885587]
[1769374330043,1.33716544,2804.4,2803.7,0.07885587]
[1769374330420,0.44570534,2804.4,2803.7,0.07885587]
[1769374330624,13.00250484,2804.8,2804.3,0.07885587]
[1769374330830,12.11116269,2804.8,2804.3,0.07885587]
[1769374331241,12.11116269,2804.8,2804.1,0.07885587]
[1769374331554,13.00250274,2804.8,2803.9,0.07885587]
[1769374331757,1.65676985,2804.7,2803.9,0.07885587]
[1769374331922,1.65676985,2804.7,2804.1,0.07885587]
[1769374332121,1.28581627,2805.1,2804.3,0.07885587]
[1769374332460,1.28581627,2805.1,2804.5,0.07885587]
[1769374333072,0.001,2805.5,2804.9,0.07885587]
[1769374333224,0.8921246,2805.5,2804.9,0.07885587]
[1769374333570,12.11116269,2805.4,2803.9,0.07885587]
[1769374333792,0.89212112,2805.5,2803.5,0.07885587]
[1769374333793,0.07885587,2804.9,2804.2,0.07885587]
[1769374333932,12.11116269,2805.0,2803.4,0.07885587]
[1769374334136,12.11116269,2804.8,2803.9,0.07885587]
[1769374334841,0.001,2804.9,2804.1,0.07885587]
[1769374335033,0.001,2804.9,2803.9,0.07885587]
[1769374335235,0.001,2804.9,2804.1,0.07885587]
[1769374335881,0.001,2804.9,2804.7,0.07885587]
[1769374336090,0.89213414,2805.5,2804.8,0.07885587]
[1769374336390,1.33471402,2805.4,2804.5,0.07885587]
[1769374336559,13.7897201,2805.4,2804.3,0.07885587]
[1769374337003,12.45500608,2804.8,2803.6,0.07885587]
[1769374337151,12.45500608,2804.6,2802.7,0.89197597]
[1769374337350,12.45500608,2804.4,2802.6,0.07885587]
[1769374337646,12.45500608,2804.2,2803.0,0.07885587]
[1769374337845,12.45500608,2804.2,2803.2,0.07885587]
[1769374338087,12.45500608,2804.7,2804.1,0.07885587]
[1769374338386,12.45500608,2804.5,2802.8,0.07885587]
[1769374338609,12.45500608,2804.5,2803.2,0.07885587]
[1769374338749,12.45500608,2804.3,2803.7,0.07885587]
[1769374338949,13.34649693,2804.3,2803.7,0.07885587]
[1769374339144,13.34649693,2804.3,2803.4,0.07885587]
[1769374339359,0.8914511,2804.5,2803.8,0.07885587]
[1769374339805,0.8914511,2804.5,2802.1,0.07885587]
[1769374340019,12.45500608,2804.3,2803.0,0.07885587]
[1769374341021,12.45500608,2804.1,2803.2,0.07885587]
[1769374341422,12.45500608,2804.1,2803.0,0.07885587]
[1769374341728,12.45500608,2804.1,2802.6,0.07885587]
[1769374341729,12.45500608,2803.9,2802.6,0.07885587]
[1769374342318,12.45500608,2803.9,2801.9,3.64786163]
[1769374342319,12.45500608,2803.9,2802.7,0.07885587]
[1769374342525,12.45500608,2803.7,2802.7,0.07885587]
[1769374343210,0.89171065,2803.6,2802.7,0.07885587]
[1769374344023,13.34671673,2803.6,2802.7,0.07885587]
[1769374346118,13.34671673,2803.6,2802.9,0.002]
[1769374346888,13.34671673,2803.6,2802.6,0.002]
[1769374347091,13.34671673,2803.6,2802.1,0.07885587]
[1769374347092,12.45500608,2803.4,2802.1,0.07885587]
[1769374347404,12.45500608,2803.2,2802.5,0.07885587]
[1769374347610,12.45500608,2803.2,2802.3,0.07885587]
[1769374349431,1.69134392,2803.5,2802.7,0.07885587]
[1769374349601,2.58309137,2803.5,2802.9,0.07885587]
[1769374350529,2.58309137,2803.5,2802.7,0.07885587]
[1769374350705,2.58309137,2803.5,2802.3,0.07885587]
[1769374350706,14.31550031,2803.4,2802.3,0.07885587]
[1769374350900,14.31550031,2803.4,2802.5,0.07885587]
[1769374351515,0.89180608,2803.3,2802.5,0.07885587]
[1769374351713,15.2242537,2803.3,2802.3,0.07885587]
[1769374351931,15.2242537,2803.3,2802.5,0.07885587]
[1769374352421,13.34671673,2803.7,2802.7,0.07885587]
[1769374352626,3.56686422,2803.6,2802.7,0.07885587]
[1769374352823,12.45500608,2803.5,2802.7,0.07885587]
[1769374353199,12.45500608,2803.5,2802.5,0.07885587]
[1769374353424,12.45500608,2803.5,2802.3,0.07885587]
[1769374353425,12.10105798,2803.3,2802.3,0.07885587]
[1769374353627,12.10105798,2803.3,2801.6,3.6481218]
[1769374353628,13.4003412,2803.2,2801.6,0.97118364]
[1769374353821,13.4003412,2803.2,2802.1,0.07885587]
[1769374355104,13.4003412,2803.2,2802.3,0.07885587]
[1769374355306,13.4003412,2803.2,2802.6,0.07885587]
[1769374355510,14.29218214,2803.2,2802.6,0.07885587]
[1769374356514,14.29218214,2803.2,2802.3,0.07885587]
[1769374356515,12.76559564,2803.1,2802.3,0.07885587]
[1769374356713,12.76559564,2803.1,2802.1,0.07885587]
[1769374356917,12.76559564,2803.1,2802.3,0.07885587]
[1769374357505,12.10105798,2802.9,2801.8,0.07885587]
[1769374357835,12.10105798,2802.9,2802.0,0.07885587]
[1769374358035,1.29929595,2802.8,2802.0,0.07885587]
[1769374358645,4.23214379,2803.1,2802.4,0.07885587]
[1769374358646,0.66453766,2803.1,2802.4,0.07885587]
[1769374358817,12.992869,2803.3,2802.6,0.07885587]
[1769374359006,12.992869,2803.3,2802.4,0.07885587]
[1769374359733,12.9928667,2803.3,2802.6,0.07885587]
[1769374360232,12.10105798,2803.3,2802.4,0.07885587]
[1769374360430,12.10105798,2803.3,2802.6,0.07885587]
[1769374362808,12.10105798,2803.3,2802.4,0.07885587]
[1769374362809,12.10105798,2803.3,2802.7,0.07885587]
[1769374363009,0.89173436,2803.6,2802.8,0.07885587]
[1769374363210,1.65594708,2803.6,2802.8,0.07885587]
[1769374363616,0.001,2804.3,2803.0,0.07885587]
[1769374363821,0.001,2804.3,2803.5,0.07885587]
[1769374363822,12.99356751,2804.3,2803.5,0.07885587]
[1769374364435,12.99356751,2804.3,2803.3,0.07885587]
[1769374364616,12.99356751,2804.3,2803.5,0.07885587]
[1769374364617,12.10205798,2804.3,2803.5,0.07885587]
[1769374365830,12.10205798,2804.3,2803.7,0.07885587]
[1769374365831,0.001,2804.3,2803.7,0.07885587]
[1769374366416,0.001,2804.3,2803.8,0.07885587]
[1769374366638,0.001,2804.3,2803.3,0.07885587]
[1769374366842,0.001,2804.3,2803.0,0.07885587]
[1769374366843,13.31226378,2804.3,2803.0,0.07885587]
[1769374367137,12.10205798,2804.3,2803.6,0.07885587]
[1769374367359,0.001,2804.3,2803.8,0.07885587]
[1769374369963,0.001,2804.3,2804.0,0.07885587]
[1769374370831,0.001,2804.3,2803.8,0.07885587]
[1769374371030,12.99226032,2805.2,2804.2,0.07885587]
[1769374371258,12.10105798,2805.0,2804.0,0.07885587]
[1769374371758,12.10105798,2805.0,2802.0,0.002]
[1769374371759,12.10105798,2803.3,2802.0,0.002]
[1769374371959,12.10105798,2803.1,2802.0,0.002]
[1769374372944,4.80019569,2803.4,2802.0,0.002]
[1769374372945,12.10105798,2802.9,2802.0,0.002]
[1769374373543,12.10105798,2802.9,2802.1,0.07885587]
[1769374373745,12.10105798,2803.3,2802.7,0.07885587]
[1769374374157,12.10105798,2803.3,2802.5,0.07885587]
[1769374374378,12.10105798,2803.3,2802.7,0.07885587]
[1769374374865,12.10105798,2803.7,2802.7,0.07885587]
[1769374375077,12.10105798,2803.7,2802.1,0.07885587]
[1769374375078,12.10105798,2803.5,2802.1,0.07885587]
[1769374375766,12.10105798,2803.3,2802.0,0.002]
[1769374376065,12.10105798,2803.3,2802.1,0.07885587]
[1769374377074,12.10105798,2803.1,2802.1,0.07885587]
[1769374378958,12.9929505,2803.1,2802.1,0.07885587]
[1769374379161,12.10105798,2802.9,2802.1,0.07885587]
[1769374379874,12.10105798,2802.9,2802.3,0.07885587]
[1769374381477,1.2848058,2803.6,2802.3,0.07885587]
[1769374381478,12.10205798,2804.1,2803.1,0.07885587]
[1769374381637,12.9936116,2804.1,2802.8,0.07885587]
[1769374381836,12.10105798,2803.9,2802.8,0.07885587]
[1769374382171,0.2335703,2803.6,2802.4,0.07885587]
[1769374382371,12.10105798,2803.5,2802.4,0.07885587]
[1769374382774,12.10105798,2803.5,2802.6,0.07885587]
[1769374382979,12.10105798,2803.5,2802.8,0.07885587]
[1769374383285,13.40033305,2803.5,2802.8,0.07885587]
[1769374384449,13.40033305,2803.5,2802.6,0.07885587]
[1769374384978,13.40033305,2803.5,2802.8,0.07885587]
[1769374386472,4.77655623,2804.0,2803.2,0.07885587]
[1769374386473,12.56763974,2803.9,2803.2,0.07885587]
[1769374386863,1.2102058,2804.0,2803.2,0.07885587]
[1769374387085,12.56763974,2804.0,2803.2,0.07885587]
[1769374389963,0.001,2804.1,2803.2,0.07885587]
[1769374389964,0.001,2804.1,2803.9,0.07885587]
[1769374390268,0.001,2804.1,2803.7,0.07885587]
[1769374390479,0.001,2804.1,2803.9,0.07885587]
[1769374390681,0.001,2804.1,2803.7,0.07885587]
[1769374390856,12.56863974,2804.1,2803.2,0.07885587]
[1769374391061,12.56863974,2804.1,2803.4,0.07885587]
[1769374391261,12.56863974,2804.1,2803.2,0.07885587]
[1769374391462,13.91465338,2804.1,2803.3,0.07885587]
[1769374392392,13.91465338,2804.1,2803.5,0.07885587]
[1769374392901,14.80620864,2804.1,2803.0,0.07885587]
[1769374393071,14.80621128,2804.1,2803.1,0.07885587]
[1769374393673,14.80621128,2804.1,2802.6,0.07885587]
[1769374393972,12.56763974,2803.9,2802.6,0.07885587]
[1769374394154,12.56763974,2803.9,2802.8,0.07885587]
[1769374394358,12.56763974,2803.9,2802.6,0.07885587]
[1769374394572,12.56763974,2803.9,2802.8,0.07885587]
[1769374394786,12.56763974,2803.9,2802.6,0.07885587]
[1769374394966,1.83722961,2804.0,2802.6,0.07885587]
[1769374394967,12.56763974,2803.7,2802.6,0.07885587]
[1769374395170,12.56763974,2803.7,2802.8,0.07885587]
[1769374395381,13.45931879,2803.7,2802.6,0.07885587]
[1769374395572,12.56763974,2803.7,2802.8,0.07885587]
[1769374397260,0.001,2803.9,2803.2,0.07885587]
[1769374397461,1.18735079,2803.9,2803.3,0.07885587]
[1769374397660,0.001,2803.9,2803.4,0.07885587]
[1769374397861,0.001,2803.9,2803.2,0.07885587]
[1769374398074,0.001,2803.9,2803.4,0.07885587]
[1769374398500,0.001,2803.9,2803.2,0.07885587]
[1769374398988,0.001,2803.9,2803.6,0.07885587]
[1769374399199,3.56534623,2804.8,2803.4,0.07885587]
[1769374399200,0.2335703,2805.0,2803.8,0.07885587]
[1769374399364,0.50778421,2804.8,2804.0,0.07885587]
[1769374399561,1.30484211,2804.9,2804.3,0.07885587]
[1769374399794,11.86150788,2805.1,2804.5,0.07885587]
[1769374400009,11.86250788,2805.5,2804.7,0.07885587]
[1769374400170,0.001,2805.5,2805.1,0.07885587]
[1769374400374,0.001,2805.5,2805.2,0.07885587]
[1769374400898,0.001,2805.5,2805.4,0.07885587]
[1769374401231,0.001,2805.5,2805.1,0.07885587]
[1769374401372,0.001,2805.5,2805.3,0.07885587]
[1769374402112,0.001,2805.5,2804.9,0.07885587]
[1769374402409,0.001,2805.5,2805.0,0.07885587]
[1769374402583,1.44439334,2806.1,2805.4,0.07885587]
[1769374402774,1.67792687,2806.1,2805.4,0.07885587]
[1769374403175,13.53943475,2806.1,2805.2,0.07885587]
[1769374403393,13.53943475,2806.1,2805.4,0.07885587]
[1769374404086,14.43035412,2806.1,2805.0,0.07885587]
[1769374404285,14.43035412,2806.1,2805.2,0.02885587]
[1769374404286,13.30454329,2806.0,2805.2,0.02885587]
[1769374404700,13.30454329,2806.0,2805.4,0.07885587]
[1769374404917,1.44439334,2806.1,2805.8,0.07885587]
[1769374405419,1.44439334,2806.1,2806.0,0.07885587]
[1769374405708,1.44439334,2806.1,2805.6,0.07885587]
[1769374406112,1.44439334,2806.1,2805.8,0.07885587]
[1769374406311,1.44439334,2806.1,2806.0,0.07885587]
[1769374406603,0.18615685,2806.6,2806.2,0.07885587]
[1769374406776,0.18615685,2806.6,2806.4,0.07885587]
[1769374406976,11.86150788,2806.9,2806.4,0.07885587]
[1769374407205,1.18615079,2806.8,2806.2,0.07885587]
[1769374407417,12.04758917,2806.9,2806.4,0.07885587]
[1769374407932,0.18608129,2806.9,2806.6,0.07885587]
[1769374408094,11.86150788,2807.3,2806.6,0.07885587]
[1769374408299,11.86150788,2807.3,2806.0,0.07885587]
[1769374408513,12.04757368,2807.3,2806.2,0.07885587]
[1769374408731,11.86150788,2807.1,2806.4,0.07885587]
[1769374409067,0.1860658,2807.3,2807.0,0.07885587]
[1769374409238,0.1860658,2807.3,2806.8,0.07885587]
[1769374409239,11.86150788,2808.8,2806.8,0.07885587]
[1769374409528,11.86150788,2808.4,2806.4,0.07885587]
[1769374409728,11.86150788,2808.4,2806.3,0.07885587]
[1769374409931,11.86150788,2808.2,2806.5,0.96962845]
[1769374410233,11.86150788,2808.2,2805.9,3.64272305]
[1769374410234,11.86150788,2808.2,2805.9,0.07885587]
[1769374410433,11.86150788,2807.8,2805.9,1.81528444]
[1769374410729,11.86150788,2807.8,2806.1,0.07885587]
[1769374411261,11.86150788,2807.3,2806.2,0.07885587]
[1769374411599,11.86150788,2807.3,2806.4,0.07885587]
[1769374411849,11.86150788,2807.3,2806.2,0.07885587]
[1769374412048,0.3615703,2808.0,2806.6,0.07885587]
[1769374412049,11.86150788,2807.8,2806.6,0.07885587]
[1769374412200,11.86150788,2807.8,2806.4,0.07885587]
[1769374412201,12.75190105,2807.8,2806.3,0.07885587]
[1769374412514,12.75190105,2807.8,2806.2,0.07885587]
[1769374412705,12.75190105,2807.8,2806.0,0.07885587]
[1769374412706,11.86150788,2807.6,2806.0,0.07885587]
[1769374412906,11.86150788,2807.6,2806.0,0.96980284]
[1769374413098,12.15998709,2807.4,2806.2,0.07885587]
[1769374413831,12.15998709,2807.4,2806.3,0.07885587]
[1769374414046,12.15998709,2807.4,2806.5,0.07885587]
[1769374415054,12.15998709,2807.4,2806.3,0.07885587]
[1769374415055,13.05049719,2807.4,2806.1,0.07885587]
[1769374415267,13.05049575,2807.4,2805.7,0.07885587]
[1769374415557,12.15998709,2807.2,2805.7,0.07885587]
[1769374415765,12.15998709,2807.2,2805.9,0.07885587]
[1769374416263,13.05058296,2807.2,2805.9,0.07885587]
[1769374416654,1.42600036,2807.3,2806.3,0.07885587]
[1769374416953,14.25997142,2807.5,2806.5,0.07885587]
[1769374417152,14.25997142,2807.5,2806.3,0.07885587]
[1769374417153,13.36949491,2807.5,2806.3,0.07885587]
[1769374417326,13.36949491,2807.5,2806.5,0.07885587]
[1769374417727,14.2599708,2807.5,2806.3,0.07885587]
[1769374418524,14.25997142,2807.5,2806.3,0.07885587]
[1769374418726,13.58598423,2807.4,2806.5,0.07885587]
[1769374421027,13.58598423,2807.4,2806.3,0.08085587]
[1769374421925,13.58598423,2807.4,2806.7,0.07885587]
[1769374422123,12.15998709,2807.9,2807.0,0.07885587]
[1769374422359,13.05022047,2808.3,2807.2,0.07885587]
[1769374422924,13.05021017,2808.3,2807.2,0.07885587]
[1769374423157,13.05020553,2808.3,2807.2,0.07885587]
[1769374423360,1.30502055,2808.2,2807.4,0.07885587]
[1769374423729,12.15998709,2808.8,2808.0,0.07885587]
[1769374424562,12.15998709,2808.8,2807.8,0.07885587]
[1769374424759,13.05005108,2808.8,2807.2,0.07885587]
[1769374424949,13.05005108,2808.8,2807.4,0.07885587]
[1769374425148,12.15998709,2808.4,2807.1,0.07885587]
[1769374425347,12.15998709,2808.2,2807.1,0.07885587]
[1769374425657,12.15998709,2808.2,2806.9,0.07885587]
[1769374425832,12.15998709,2808.2,2807.1,0.07885587]
[1769374426029,12.15998709,2808.2,2807.4,0.07885587]
[1769374426229,12.15998709,2808.6,2807.7,0.07885587]
[1769374426459,13.5395918,2808.6,2807.9,0.07885587]
[1769374426662,14.42971791,2808.6,2807.7,0.07885587]
[1769374426870,14.42971791,2808.6,2807.4,0.07885587]
[1769374427167,14.42971791,2808.6,2806.9,0.07885587]
[1769374427168,12.15998709,2808.4,2806.9,0.07885587]
[1769374427335,12.15998709,2808.2,2806.9,0.07885587]
[1769374427684,12.15998709,2808.0,2806.3,0.08085587]
[1769374427961,12.15998709,2808.0,2806.9,0.07885587]
[1769374428145,12.15998709,2808.0,2807.1,0.07885587]
[1769374428346,12.15998709,2808.0,2807.3,0.07885587]
[1769374428546,12.15998709,2808.9,2808.1,0.07885587]
[1769374428737,13.48358248,2808.9,2808.1,0.07885587]
[1769374429047,13.48358248,2808.9,2807.7,0.07885587]
[1769374429248,13.48358248,2808.9,2807.9,0.07885587]
[1769374429459,13.48358248,2808.9,2807.7,0.07885587]
[1769374429829,13.48358248,2808.9,2807.8,0.07885587]
[1769374430028,12.15998709,2808.7,2807.8,0.07885587]
[1769374430762,12.15998709,2808.7,2808.0,0.07885587]
[1769374431067,1.32359539,2808.9,2808.2,0.07885587]
[1769374431630,0.18596706,2809.0,2808.4,0.07885587]
[1769374432254,0.18596706,2809.0,2808.0,0.07885587]
[1769374432255,1.07597446,2809.0,2808.0,0.07885587]
[1769374432455,0.001,2808.5,2808.2,0.07885587]
[1769374432862,0.001,2808.5,2808.0,0.07885587]
[1769374433436,0.001,2808.5,2807.5,0.07885587]
[1769374433738,12.16098709,2808.5,2807.7,0.07885587]
[1769374433939,0.001,2808.5,2807.9,0.07885587]
[1769374434142,0.18596706,2809.0,2808.3,0.07885587]
[1769374434359,13.3945825,2809.0,2807.9,0.07885587]
[1769374434554,14.28458433,2809.0,2807.9,0.07885587]
[1769374434756,14.28458433,2809.0,2807.7,0.07885587]
[1769374434954,14.28458433,2809.0,2807.9,0.07885587]
[1769374435363,14.28458433,2809.0,2807.7,0.07885587]
[1769374435669,14.28458433,2809.0,2807.5,0.07885587]
[1769374435670,12.15998709,2808.8,2807.5,0.07885587]
[1769374435870,12.15998709,2808.8,2807.7,0.07885587]
[1769374436169,12.15998709,2808.8,2807.9,0.07885587]
[1769374436370,12.15998709,2808.8,2808.1,0.07885587]
[1769374436672,12.15998709,2808.8,2808.3,0.07885587]
[1769374437674,12.15998709,2808.6,2807.6,0.07885587]
[1769374438047,12.15998709,2808.6,2807.4,0.07885587]
[1769374438645,12.15998709,2808.4,2807.4,0.07885587]
[1769374439854,12.15998709,2808.4,2807.2,0.07885587]
[1769374440175,12.15998709,2808.2,2807.2,0.07885587]
[1769374440380,12.15998709,2808.2,2807.5,0.07885587]
[1769374440684,4.70495461,2809.2,2808.0,0.07885587]
[1769374440685,3.56002782,2809.0,2808.0,0.07885587]
[1769374440885,3.5591083,2809.7,2808.0,0.07885587]
[1769374440886,12.15998709,2810.0,2809.2,0.07885587]
[1769374441190,12.15998709,2810.0,2809.0,0.07885587]
[1769374441191,12.15998709,2809.8,2808.5,0.07885587]
[1769374441346,12.15998709,2809.8,2808.8,0.07885587]
[1769374441546,12.15998709,2809.8,2809.0,0.07885587]
[1769374441751,12.15998709,2809.8,2808.5,0.07885587]
[1769374441982,12.15998709,2809.6,2808.6,0.07885587]
[1769374442178,12.15998709,2809.6,2808.3,0.07885587]
[1769374442379,12.15998709,2809.2,2807.8,0.07885587]
[1769374442677,12.15998709,2809.6,2808.6,0.07885587]
[1769374442878,12.15998709,2809.6,2808.9,0.07885587]
[1769374443046,12.15998709,2809.6,2809.1,0.07885587]
[1769374443244,12.96354457,2810.0,2808.9,0.07885587]
[1769374443444,12.96354457,2810.0,2808.5,0.07885587]
[1769374443445,13.06911487,2809.9,2808.5,0.07885587]
[1769374443644,12.83554457,2809.7,2808.7,0.07885587]
[1769374443957,12.83554457,2809.3,2808.1,0.07885587]
[1769374444173,12.83554457,2809.3,2808.0,0.002]
[1769374444174,12.83554457,2809.1,2808.0,0.002]
[1769374444683,12.83554457,2808.9,2808.1,0.07885587]
[1769374444877,12.83554457,2808.9,2808.0,0.002]
[1769374445179,12.83554457,2808.6,2807.8,0.002]
[1769374445376,12.83554457,2808.7,2807.8,0.002]
[1769374445882,12.83554457,2808.5,2807.8,0.002]
[1769374446082,12.83554457,2808.5,2807.9,0.07885587]
[1769374446250,1.3725541,2808.8,2807.9,0.07885587]
[1769374446582,1.3725541,2808.8,2808.1,0.07885587]
[1769374447080,13.72559596,2808.9,2808.1,0.07885587]
[1769374447081,12.83554457,2808.9,2808.1,0.07885587]
[1769374447279,13.72557978,2808.9,2807.9,0.07885587]
[1769374447472,13.72557978,2808.9,2808.1,0.07885587]
[1769374447774,13.72557978,2808.9,2807.9,0.07885587]
[1769374448180,13.72557978,2808.9,2807.8,0.002]
[1769374448358,12.83554457,2808.7,2807.8,0.002]
[1769374448865,12.83554457,2808.5,2807.8,0.002]
[1769374449556,12.83554457,2808.3,2806.6,0.08085587]
[1769374449750,12.83554457,2808.3,2807.0,0.07885587]
[1769374449954,12.83554457,2808.3,2807.2,0.07885587]
[1769374450173,1.38151149,2808.2,2807.0,0.07885587]
[1769374450373,12.83554457,2808.2,2807.2,0.07885587]
[1769374450651,12.83554457,2808.0,2807.0,0.07885587]
[1769374450863,13.72587614,2808.0,2807.0,0.07885587]
[1769374451180,13.72587614,2808.0,2806.8,0.07885587]
[1769374451579,13.72587614,2808.0,2806.7,0.07885587]
[1769374451880,12.83554457,2807.8,2806.7,0.07885587]
[1769374452056,12.83554457,2807.8,2806.9,0.07885587]
[1769374453964,2.61907384,2807.9,2806.9,0.07885587]
[1769374453965,13.72574511,2808.4,2807.6,0.07885587]
[1769374454283,13.72574511,2808.4,2807.1,0.07885587]
[1769374454583,13.06911487,2808.2,2807.1,0.07885587]
[1769374454776,13.06911487,2808.2,2806.9,0.07885587]